bitfinex-derivatives/quotes_BNBF0:USTF0_20250710
["timestamp","ask_amount","ask_price","bid_price","bid_amount"]
[1752191172798,1.952673,684.57,683.81,1.87878813]
[1752191173001,1.952673,684.54,683.82,1.87878813]
[1752191173200,1.952673,684.54,683.83,1.87878813]
[1752191173502,1.952673,684.54,683.84,1.87878813]
[1752191173705,1.952673,684.6,683.85,1.87878813]
[1752191173901,1.952673,684.6,683.86,1.87878813]
[1752191174095,1.952673,684.6,683.87,1.87878813]
[1752191174400,1.952673,684.6,683.88,1.87869172]
[1752191174702,1.952673,684.59,683.89,0.98050191]
[1752191174901,1.952673,684.59,683.9,0.98050191]
[1752191175097,1.952673,684.59,683.91,0.98050191]
[1752191175296,1.952673,684.6,683.8,1.09]
[1752191175497,1.952673,684.6,683.81,1.87851864]
[1752191175800,0.25416023,684.69,683.8,1.09]
[1752191175801,1.952673,684.59,683.82,1.87851864]
[1752191176001,1.952673,684.59,683.83,1.87851864]
[1752191176297,1.952673,684.58,683.84,1.87851864]
[1752191176499,1.952673,684.58,683.85,1.87851864]
[1752191176702,1.952673,684.58,683.86,1.87851864]
[1752191176900,1.952673,684.58,683.87,1.87851864]
[1752191177099,1.952673,684.58,683.88,1.87851864]
[1752191177401,1.952673,684.58,683.89,0.98042251]
[1752191177599,1.952673,684.58,683.9,0.98042251]
[1752191177800,1.952673,684.58,683.8,1.09]
[1752191178001,1.952673,684.58,683.81,1.87835486]
[1752191178199,1.952673,684.58,683.82,1.87835486]
[1752191178397,1.952673,684.58,683.83,1.87835486]
[1752191178603,1.952673,684.58,683.84,1.87835486]
[1752191178803,1.952673,684.58,683.85,1.87835486]
[1752191179006,1.952673,684.58,683.86,1.87835486]
[1752191179207,1.952673,684.58,683.87,1.87835486]
[1752191179405,1.952673,684.58,683.88,0.98029587]
[1752191179704,1.952673,684.58,683.89,0.98029587]
[1752191179904,1.952673,684.58,683.8,1.09]
[1752191180204,0.25416023,684.69,683.81,1.87811419]
[1752191180205,1.952673,684.57,683.81,1.87811419]
[1752191180503,1.952673,684.57,683.82,1.87811419]
[1752191180701,1.952673,684.57,683.83,1.87811419]
[1752191180919,1.952673,684.57,683.84,1.87811419]
[1752191181102,1.952673,684.56,683.85,1.87811419]
[1752191181302,1.952673,684.58,683.86,1.87811419]
[1752191181502,1.952673,684.58,683.87,1.87811419]
[1752191181706,1.952673,684.51,683.8,1.09]
[1752191182003,0.25416023,684.69,683.81,1.87793365]
[1752191182205,0.25416023,684.69,683.8,1.09]
[1752191182206,0.25416023,684.69,683.82,1.87793365]
[1752191182509,0.25416023,684.69,683.83,1.87793365]
[1752191182701,0.25416023,684.69,683.84,1.87793365]
[1752191183003,0.25416023,684.69,683.85,1.87793365]
[1752191183305,0.25416023,684.69,683.86,1.87793365]
[1752191183502,0.25416023,684.69,683.87,1.87793365]
[1752191183707,0.25416023,684.69,683.88,1.87793365]
[1752191184008,0.25416023,684.69,683.89,1.87793365]
[1752191184207,0.25416023,684.69,683.9,1.87793365]
[1752191184408,0.25416023,684.69,683.91,1.87793365]
[1752191184708,0.25416023,684.69,683.92,1.87793365]
[1752191185008,0.25416023,684.69,683.93,1.87793365]
[1752191185208,0.25416023,684.69,683.94,1.87793365]
[1752191185507,0.25416023,684.69,683.95,1.87793365]
[1752191185707,0.25416023,684.69,683.96,1.87793365]
[1752191185906,0.25416023,684.69,683.97,1.87793365]
[1752191186107,0.25416023,684.69,683.98,1.87793365]
[1752191186305,0.25416023,684.69,683.99,1.87793365]
[1752191186512,0.25416023,684.69,684.0,1.87793365]
[1752191186805,0.25416023,684.69,684.01,0.98000787]
[1752191187008,0.25416023,684.69,684.02,0.98000787]
[1752191187206,0.25416023,684.69,684.03,0.98000787]
[1752191187406,0.25416023,684.69,684.04,0.98000787]
[1752191187606,0.25416023,684.69,684.05,0.98000787]
[1752191187805,0.25416023,684.69,684.06,0.98000787]
[1752191188005,0.25416023,684.69,683.67,0.98343637]
[1752191188205,0.25416023,684.69,684.07,1.351]
[1752191193812,1.952673,684.62,684.07,1.351]
[1752191194416,1.952673,684.67,684.07,1.351]
[1752191196117,1.952673,684.68,684.07,1.351]
[1752191196414,1.952673,684.66,684.07,1.351]
[1752191197020,1.952673,684.65,684.07,1.351]
[1752191197419,1.952673,684.63,684.07,1.351]
[1752191197918,1.952673,684.62,684.07,1.351]
[1752191198915,1.952673,684.6,684.07,1.351]
[1752191200421,1.952673,684.59,684.07,1.351]
[1752191201221,1.952673,684.6,684.07,1.351]
[1752191203224,1.952673,684.55,684.07,1.351]
[1752191205027,1.952673,684.51,684.07,1.351]
[1752191205228,1.952673,684.51,683.6,0.98343637]
[1752191205429,1.952673,684.51,683.61,1.8784175]
[1752191205623,1.952673,684.51,683.62,1.8784175]
[1752191205922,1.952673,684.51,683.63,1.8784175]
[1752191206124,1.952673,684.51,683.64,1.8784175]
[1752191206327,1.952673,684.53,683.65,1.8784175]
[1752191206527,1.952673,684.53,683.66,1.8784175]
[1752191206724,1.952673,684.53,683.67,1.8784175]
[1752191206927,1.952673,684.53,683.68,1.8784175]
[1752191207228,1.952673,684.53,683.69,1.8784175]
[1752191207427,1.952673,684.53,683.7,1.8784175]
[1752191207724,1.952673,684.53,683.71,1.8784175]
[1752191207923,1.952673,684.53,683.72,1.8784175]
[1752191208130,1.952673,684.53,683.73,1.8784175]
[1752191208324,1.952673,684.57,683.74,0.89836428]
[1752191208525,1.952673,684.57,683.75,1.87839782]
[1752191208726,1.952673,684.57,683.76,1.87839782]
[1752191208932,1.952673,684.57,683.58,1.23771267]
[1752191208933,1.952673,684.57,683.77,1.87839782]
[1752191209228,1.952673,684.55,683.78,1.87839782]
[1752191209428,1.952673,684.55,683.79,1.87839782]
[1752191209629,1.952673,684.55,683.8,1.87839782]
[1752191209826,1.952673,684.55,683.81,1.87839782]
[1752191210026,1.952673,684.55,683.82,1.87839782]
[1752191210329,1.952673,684.55,683.83,1.87839782]
[1752191210626,1.952673,684.55,683.84,1.87839782]
[1752191210824,1.952673,684.55,683.85,1.87839782]
[1752191211028,1.952673,684.55,683.86,1.87839782]
[1752191211225,1.952673,684.56,683.87,1.87839782]
[1752191211429,1.952673,684.56,683.88,0.98003354]
[1752191211729,1.952673,684.56,683.77,1.612]
[1752191211927,1.952673,684.56,683.78,1.87844587]
[1752191212229,1.952673,684.56,683.79,1.87844587]
[1752191212426,1.952673,684.56,683.8,1.87844587]
[1752191212726,1.952673,684.56,683.77,1.612]
[1752191212727,1.952673,684.56,683.81,1.87844587]
[1752191212931,1.952673,684.56,683.82,1.87844587]
[1752191213131,1.952673,684.56,683.83,1.87844587]
[1752191213329,1.952673,684.56,683.84,1.87844587]
[1752191213528,1.952673,684.56,683.85,1.87844587]
[1752191213830,1.952673,684.54,683.86,1.87844587]
[1752191214028,1.952673,684.54,683.87,1.87844587]
[1752191214227,1.952673,684.54,683.77,1.612]
[1752191214431,1.952673,684.53,683.78,1.87852909]
[1752191214630,1.952673,684.53,683.79,1.87852909]
[1752191214834,1.952673,684.53,683.8,1.87852909]
[1752191215133,1.952673,684.53,683.81,1.87852909]
[1752191215432,1.952673,684.52,683.82,1.87852909]
[1752191215627,1.952673,684.52,683.83,0.89855458]
[1752191215829,1.952673,684.53,683.84,1.87853606]
[1752191216033,1.952673,684.51,683.85,1.87853606]
[1752191216329,1.952673,684.53,683.86,1.87853606]
[1752191216529,1.952673,684.53,683.87,0.89855458]
[1752191216732,1.952673,684.49,683.77,1.612]
[1752191216935,1.952673,684.64,683.78,1.87862995]
[1752191217230,1.952673,684.64,683.79,1.87862995]
[1752191217430,1.952673,684.64,683.8,1.87862995]
[1752191217730,1.952673,684.64,683.77,1.612]
[1752191217731,1.952673,684.64,683.81,1.87862995]
[1752191218030,1.952673,684.64,683.82,1.87862995]
[1752191218234,1.952673,684.64,683.83,1.87862995]
[1752191218434,1.952673,684.66,683.84,1.87862995]
[1752191218631,1.952673,684.65,683.85,1.87862995]
[1752191218836,1.952673,684.65,683.86,1.87862995]
[1752191219031,1.952673,684.65,683.87,1.87862995]
[1752191219231,1.952673,684.65,683.88,1.87862995]
[1752191219437,1.952673,684.65,683.89,1.87862995]
[1752191219732,1.952673,684.65,683.9,1.87862995]
[1752191219930,1.952673,684.65,683.91,0.97999366]
[1752191220135,1.952673,684.65,683.77,1.612]
[1752191220435,1.952673,684.65,683.78,1.87880563]
[1752191220635,1.952673,684.65,683.79,1.87880563]
[1752191220833,1.952673,684.65,683.8,1.87880563]
[1752191221035,1.952673,684.66,683.81,1.87880563]
[1752191221235,1.952673,684.66,683.82,1.87880563]
[1752191221434,1.952673,684.56,683.83,1.87880563]
[1752191221634,1.952673,684.56,683.84,1.87880563]
[1752191221837,1.952673,684.56,683.85,1.87880563]
[1752191222037,1.952673,684.54,683.86,1.87880563]
[1752191222238,0.25416023,684.69,683.87,1.87880563]
[1752191222239,1.952673,684.53,683.87,1.87880563]
[1752191222440,1.952673,684.53,683.77,1.612]
[1752191222641,1.952673,684.53,683.78,1.87901364]
[1752191222839,1.952673,684.53,683.79,1.87901364]
[1752191223138,1.952673,684.53,683.8,1.87901364]
[1752191223334,1.952673,684.54,683.81,1.87901364]
[1752191223535,1.952673,684.49,683.82,1.87901364]
[1752191223737,1.952673,684.49,683.83,1.87901364]
[1752191223934,1.952673,684.5,683.84,1.87901364]
[1752191224135,1.952673,684.5,683.85,1.87901364]
[1752191224336,1.952673,684.5,683.86,1.87901364]
[1752191224540,1.952673,684.5,683.87,0.89895834]
[1752191224741,1.952673,684.56,683.88,0.89895834]
[1752191225036,1.952673,684.56,683.77,1.612]
[1752191225241,1.952673,684.57,683.78,1.87903546]
[1752191225438,1.952673,684.55,683.79,1.87900413]
[1752191225636,1.952673,684.55,683.8,1.87900413]
[1752191225842,1.952673,684.55,683.81,1.87900413]
[1752191226041,1.952673,684.54,683.82,1.87900413]
[1752191226337,1.952673,684.54,683.83,1.87900413]
[1752191226541,1.952673,684.54,683.77,1.612]
[1752191226542,1.952673,684.54,683.84,1.87900413]
[1752191226742,1.952673,684.54,683.85,1.87900413]
[1752191226943,1.952673,684.52,683.77,1.612]
[1752191227140,1.952673,684.52,683.78,1.87897964]
[1752191227343,1.952673,684.52,683.79,1.87897964]
[1752191227544,1.952673,684.52,683.8,1.87897964]
[1752191227739,1.952673,684.51,683.81,1.87897964]
[1752191227940,1.952673,684.51,683.82,1.87897964]
[1752191228140,1.952673,684.51,683.83,1.87892354]
[1752191228341,1.952673,684.51,683.84,1.87892354]
[1752191228541,1.952673,684.51,683.85,1.87892354]
[1752191228743,1.952673,684.51,683.77,1.612]
[1752191228942,1.952673,684.51,683.78,1.87894444]
[1752191229143,1.952673,684.51,683.79,1.87894444]
[1752191229345,1.952673,684.51,683.8,1.87894444]
[1752191229647,1.952673,684.51,683.81,1.87894444]
[1752191229942,1.952673,684.5,683.82,1.87894444]
[1752191230144,1.952673,684.5,683.83,1.87894444]
[1752191230443,1.952673,684.5,683.84,1.87894444]
[1752191230742,1.952673,684.5,683.77,1.612]
[1752191230949,1.952673,684.5,683.78,1.87887105]
[1752191231244,1.952673,684.44,683.79,1.87887105]
[1752191231444,1.952673,684.44,683.8,1.87887105]
[1752191231742,1.952673,684.44,683.81,1.87887105]
[1752191232043,1.952673,684.44,683.82,1.87887105]
[1752191232242,1.952673,684.52,683.83,1.87887105]
[1752191232448,1.952673,684.35,683.77,1.612]
[1752191232647,1.952673,684.34,683.78,1.8786975]
[1752191232948,1.952673,684.38,683.79,1.8786975]
[1752191233143,1.952673,684.37,683.8,1.8786975]
[1752191233345,1.952673,684.37,683.81,1.8786975]
[1752191233550,1.952673,684.39,683.82,1.8786975]
[1752191233850,1.952673,684.41,683.83,1.8786975]
[1752191234150,1.952673,684.41,683.84,1.8786975]
[1752191234348,1.952673,684.41,683.77,1.612]
[1752191234349,1.952673,684.41,683.85,1.8786975]
[1752191234550,1.952673,684.42,683.86,1.8786975]
[1752191234747,1.952673,684.41,683.87,0.89866221]
[1752191234947,1.952673,684.41,683.88,0.89866221]
[1752191235151,1.952673,684.41,683.77,1.612]
[1752191235347,1.952673,684.41,683.78,1.87856847]
[1752191235545,1.952673,684.41,683.79,1.87856847]
[1752191235749,1.952673,684.41,683.8,1.87856847]
[1752191235951,1.952673,684.43,683.81,1.87856847]
[1752191236152,1.952673,684.55,683.82,1.87856847]
[1752191236448,1.952673,684.55,683.83,1.87856847]
[1752191236649,1.952673,684.56,683.84,1.87856847]
[1752191236948,1.952673,684.56,683.85,1.87856847]
[1752191237152,2.20683323,684.69,683.86,1.87856847]
[1752191237349,2.20683323,684.69,683.87,1.87856847]
[1752191237651,2.20683323,684.69,683.88,1.87856847]
[1752191237846,2.20683323,684.69,683.89,1.87856847]
[1752191238049,2.20683323,684.69,683.9,1.87856847]
[1752191238249,2.20683323,684.69,683.91,1.87855043]
[1752191238452,2.20683323,684.69,683.92,1.87855043]
[1752191238653,2.20683323,684.69,683.93,1.87855043]
[1752191238850,2.20683323,684.69,683.94,0.97996775]
[1752191239053,2.20683323,684.69,683.95,0.97996775]
[1752191239253,2.20683323,684.69,683.77,1.612]
[1752191239453,2.20683323,684.69,683.78,1.87857196]
[1752191239652,2.20683323,684.69,683.79,1.87857196]
[1752191239851,2.20683323,684.69,683.8,1.87857196]
[1752191240054,2.20683323,684.69,683.81,1.87857196]
[1752191240252,2.20683323,684.69,683.82,1.87857196]
[1752191240456,2.20683323,684.69,683.83,1.87857196]
[1752191240653,2.20683323,684.69,683.84,1.87857196]
[1752191240857,2.20683323,684.69,683.85,1.87857196]
[1752191241052,2.20683323,684.69,683.86,1.87857196]
[1752191241252,0.25416023,684.69,683.87,1.87857196]
[1752191241453,0.25416023,684.69,683.88,1.87857196]
[1752191241753,0.25416023,684.69,683.89,1.87857196]
[1752191242054,0.25416023,684.69,683.9,1.87857196]
[1752191242255,0.25416023,684.69,683.91,1.87857196]
[1752191242456,0.25416023,684.69,683.92,1.87857196]
[1752191242756,0.25416023,684.69,683.93,1.87857196]
[1752191243056,0.25416023,684.69,683.94,0.9799887]
[1752191243255,0.25416023,684.69,683.77,1.612]
[1752191243256,0.25416023,684.69,683.95,0.9799887]
[1752191243553,0.25416023,684.69,683.77,1.612]
[1752191243751,0.25416023,684.69,683.78,1.87865874]
[1752191243954,0.25416023,684.69,683.79,1.87865874]
[1752191244153,0.25416023,684.69,683.8,1.87865874]
[1752191244351,0.25416023,684.69,683.81,1.87865874]
[1752191244554,0.25416023,684.69,683.82,1.87865874]
[1752191244752,0.25416023,684.69,683.83,1.87865874]
[1752191244953,0.25416023,684.69,683.84,1.87865874]
[1752191245254,0.25416023,684.69,683.85,1.87865874]
[1752191245456,0.25416023,684.69,683.86,1.87865874]
[1752191245653,0.25416023,684.69,683.87,1.87865874]
[1752191245953,0.25416023,684.69,683.88,1.87865874]
[1752191246154,1.952673,684.64,683.89,1.87865874]
[1752191246354,1.952673,684.64,683.9,1.87865874]
[1752191246553,1.952673,684.64,683.91,1.87865874]
[1752191246753,1.952673,684.64,683.92,1.87865874]
[1752191247056,1.952673,684.64,683.93,1.87865874]
[1752191247357,1.952673,684.64,683.94,0.98003149]
[1752191247654,1.952673,684.64,683.77,1.612]
[1752191247854,1.952673,684.64,683.78,1.8792328]
[1752191248052,1.952673,684.64,683.79,1.8792328]
[1752191248258,1.952673,684.67,683.8,1.8792328]
[1752191248459,1.952673,684.66,683.81,1.8792328]
[1752191248761,1.952673,684.66,683.82,1.8792328]
[1752191249054,1.952673,684.66,683.83,1.8792328]
[1752191249253,1.952673,684.66,683.84,1.8792328]
[1752191249554,1.952673,684.66,683.85,1.8792328]
[1752191249757,1.952673,684.66,683.86,1.8792328]
[1752191249958,1.952673,684.66,683.87,1.8792328]
[1752191250255,1.952673,684.66,683.88,1.8792328]
[1752191250454,1.952673,684.66,683.77,1.612]
[1752191250455,1.952673,684.66,683.89,1.8792328]
[1752191250758,1.952673,684.66,683.9,1.8792328]
[1752191251057,1.952673,684.65,683.91,1.8792328]
[1752191251252,1.952673,684.65,683.92,1.8792328]
[1752191251455,1.952673,684.65,683.93,1.8792328]
[1752191251760,1.952673,684.65,683.94,1.8792328]
[1752191252056,1.952673,684.65,683.95,1.8792328]
[1752191252258,1.952673,684.65,683.96,1.8792328]
[1752191252460,1.952673,684.65,683.97,0.98030895]
[1752191252659,1.952673,684.65,683.77,1.612]
[1752191252856,1.952673,684.65,683.78,1.88031202]
[1752191253156,1.952673,684.65,683.79,1.88031202]
[1752191253356,1.952673,684.65,683.8,1.88031202]
[1752191253554,1.952673,684.65,683.81,1.88031202]
[1752191253758,1.952673,684.65,683.82,1.88031202]
[1752191253956,1.952673,684.65,683.83,1.88031202]
[1752191254256,1.952673,684.56,683.84,1.88031202]
[1752191254457,1.952673,684.53,683.85,1.88031202]
[1752191254656,1.952673,684.53,683.86,1.88031202]
[1752191254854,1.952673,684.53,683.87,1.88031202]
[1752191255058,1.952673,684.53,683.88,1.88031202]
[1752191255258,1.952673,684.53,683.89,1.88031202]
[1752191255459,1.952673,684.53,683.9,1.88031202]
[1752191255657,1.952673,684.51,683.91,1.88031202]
[1752191255861,1.952673,684.51,683.92,1.88031202]
[1752191256157,1.952673,684.53,683.93,1.88031202]
[1752191256360,1.952673,684.52,683.94,1.88031202]
[1752191256562,1.952673,684.52,683.77,1.612]
[1752191256862,1.952673,684.52,683.78,1.88059304]
[1752191257061,1.952673,684.46,683.79,1.88059304]
[1752191257261,1.952673,684.46,683.8,1.88059304]
[1752191257461,1.952673,684.45,683.81,1.88059304]
[1752191257761,1.952673,684.45,683.82,1.88059304]
[1752191257959,1.952673,684.45,683.83,1.88059304]
[1752191258157,1.952673,684.45,683.84,1.88059304]
[1752191258358,1.952673,684.45,683.85,1.88059304]
[1752191258557,1.952673,684.45,683.86,1.88059304]
[1752191258861,1.952673,684.45,683.87,1.88059304]
[1752191259060,1.952673,684.45,683.88,1.88059304]
[1752191259362,1.952673,684.45,683.89,1.88059304]
[1752191259561,1.952673,684.45,683.9,1.88059304]
[1752191259761,1.952673,684.42,683.91,1.88059304]
[1752191259959,1.952673,684.42,683.92,0.89952346]
[1752191260265,1.952673,684.42,683.77,1.612]
[1752191260459,1.952673,684.42,683.78,1.88077235]
[1752191260663,1.952673,684.55,683.79,1.88077235]
[1752191260863,1.952673,684.55,683.8,1.88077235]
[1752191261160,1.952673,684.54,683.81,1.88077235]
[1752191261363,1.952673,684.56,683.82,1.88077235]
[1752191261563,0.25416023,684.69,683.83,1.88077235]
[1752191261763,0.25416023,684.69,683.77,1.612]
[1752191261764,0.25416023,684.69,683.84,1.88077235]
[1752191261965,0.25416023,684.69,683.85,1.88077235]
[1752191262264,0.25416023,684.69,683.86,1.88077235]
[1752191262465,0.25416023,684.69,683.87,1.88077235]
[1752191262666,0.25416023,684.69,683.88,1.88077235]
[1752191262862,0.25416023,684.69,683.89,1.88077235]
[1752191263061,0.25416023,684.69,683.9,1.88077235]
[1752191263262,0.25416023,684.69,683.91,1.88075865]
[1752191263461,0.25416023,684.69,683.92,1.88075865]
[1752191263662,0.25416023,684.69,683.93,1.88075865]
[1752191263966,0.25416023,684.69,683.94,1.88075865]
[1752191264163,0.25416023,684.69,683.95,1.88075865]
[1752191264361,1.952673,684.51,683.96,0.89955875]
[1752191264562,1.952673,684.5,683.97,0.89955875]
[1752191264761,1.952673,684.5,683.77,1.612]
[1752191265061,1.952673,684.5,683.78,0.89949166]
[1752191265365,1.952673,684.46,683.79,1.88065293]
[1752191265666,1.952673,684.46,683.8,1.88065293]
[1752191265865,1.952673,684.46,683.81,1.88065293]
[1752191266066,1.952673,684.46,683.82,1.88065293]
[1752191266262,0.25429581,684.34,683.83,1.88065293]
[1752191266467,0.25429581,684.34,683.84,1.88065293]
[1752191266765,0.25429581,684.34,683.85,1.88065293]
[1752191266965,0.25429581,684.34,683.72,0.9859275]
[1752191266966,0.25429581,684.34,683.86,1.88065293]
[1752191267164,0.25429581,684.34,683.87,1.88065293]
[1752191267365,0.25429581,684.34,683.88,1.88065293]
[1752191267563,0.25429581,684.34,683.89,1.88065293]
[1752191267762,0.25429581,684.34,683.9,1.88065293]
[1752191268063,0.25429581,684.34,683.91,1.88065293]
[1752191268264,0.25429581,684.34,683.92,1.88065293]
[1752191268467,0.25429581,684.34,683.93,1.88065293]
[1752191268668,0.25429581,684.34,683.94,1.88065293]
[1752191268869,0.25429581,684.34,683.95,0.89949166]
[1752191269069,0.25429581,684.34,683.96,1.88062416]
[1752191269369,0.25429581,684.34,683.97,1.88062416]
[1752191269668,0.25429581,684.34,683.98,1.88061671]
[1752191269869,0.25429581,684.34,683.77,1.441]
[1752191270071,0.25429581,684.34,683.78,1.88045716]
[1752191270366,0.25429581,684.34,683.79,1.88045716]
[1752191270668,0.25429581,684.34,683.8,1.88045716]
[1752191270866,0.25429581,684.34,683.81,1.88045716]
[1752191271071,0.25429581,684.34,683.82,1.88045716]
[1752191271271,0.25429581,684.34,683.83,1.88045716]
[1752191271571,0.25429581,684.34,683.84,1.88045716]
[1752191271771,0.25429581,684.34,683.85,1.88045716]
[1752191271971,0.25429581,684.34,683.86,1.88045716]
[1752191272176,0.25429581,684.34,683.87,1.88045716]
[1752191272468,0.25429581,684.34,683.88,1.88045716]
[1752191272669,0.25429581,684.34,683.89,1.88045716]
[1752191272875,0.25429581,684.34,683.9,1.88045716]
[1752191273168,0.25429581,684.34,683.91,1.88045716]
[1752191273372,0.25429581,684.34,683.92,1.88045716]
[1752191273574,0.25429581,684.34,683.93,1.88045716]
[1752191273774,0.25429581,684.34,683.94,1.88045716]
[1752191273973,0.25429581,684.34,683.95,0.89933211]
[1752191274271,0.25429581,684.34,683.96,0.89933211]
[1752191274574,0.25429581,684.34,683.97,0.89933211]
[1752191274774,0.25429581,684.34,683.98,0.89933211]
[1752191274974,0.25429581,684.34,683.99,1.88030686]
[1752191275172,0.25429581,684.34,684.0,1.88030686]
[1752191275372,0.25429581,684.34,684.01,1.88030686]
[1752191275570,0.25429581,684.34,684.02,0.98083923]
[1752191275774,0.25429581,684.34,684.03,0.98083923]
[1752191275972,0.25429581,684.34,683.77,1.441]
[1752191276172,0.25429581,684.34,683.78,1.87968147]
[1752191276374,0.25429581,684.34,683.77,1.441]
[1752191276375,0.25429581,684.34,683.79,1.87968147]
[1752191276577,0.25429581,684.34,683.8,1.87968147]
[1752191276873,0.25429581,684.34,683.81,1.87968147]
[1752191277077,0.25429581,684.34,683.82,1.87968147]
[1752191277276,0.25429581,684.34,683.83,1.87968147]
[1752191277473,0.25429581,684.34,683.84,1.87968147]
[1752191277676,0.25429581,684.34,683.85,1.87968147]
[1752191277976,0.25429581,684.34,683.86,1.87968147]
[1752191278176,0.25429581,684.34,683.87,1.87968147]
[1752191278377,0.25429581,684.34,683.88,1.87968147]
[1752191278677,0.25429581,684.34,683.89,1.87968147]
[1752191278973,0.25429581,684.34,683.9,1.87968147]
[1752191279176,0.25429581,684.34,683.91,1.87968147]
[1752191279375,0.25429581,684.34,683.92,1.87968147]
[1752191279577,0.25429581,684.34,683.93,1.87968147]
[1752191279776,0.25429581,684.34,683.94,1.87968147]
[1752191280076,0.25429581,684.34,683.95,1.87968147]
[1752191280274,0.25429581,684.34,683.96,1.87968147]
[1752191280476,0.25429581,684.34,683.97,1.87968147]
[1752191280676,0.25429581,684.34,683.98,1.87968147]
[1752191280874,0.25429581,684.34,683.99,1.87925616]
[1752191281078,0.25429581,684.34,684.0,1.87925616]
[1752191281379,0.25429581,684.34,684.01,1.87925616]
[1752191281576,0.25429581,684.34,684.02,1.87925616]
[1752191281878,0.25429581,684.34,684.03,0.98041388]
[1752191282076,0.25429581,684.34,684.04,0.98041388]
[1752191282380,0.25429581,684.34,683.77,1.441]
[1752191282577,0.25429581,684.34,683.78,1.87887489]
[1752191282787,0.25429581,684.34,683.79,1.87887489]
[1752191282978,0.25429581,684.34,683.8,1.87887489]
[1752191283181,0.25429581,684.34,683.81,1.87887489]
[1752191283382,0.25429581,684.34,683.82,1.87887489]
[1752191283680,1.952673,684.57,683.83,1.87887489]
[1752191283877,0.25425401,684.43,683.84,1.87887489]
[1752191284078,0.25425401,684.43,683.85,1.87887489]
[1752191284282,0.25425401,684.43,683.86,1.87887489]
[1752191284482,0.25425401,684.43,683.87,1.87887489]
[1752191284778,0.25425401,684.43,683.88,1.87887489]
[1752191284979,0.25425401,684.43,683.89,1.87887489]
[1752191285179,0.25425401,684.43,683.9,1.87887489]
[1752191285378,0.25425401,684.43,683.91,1.87887489]
[1752191285582,0.25425401,684.43,683.92,1.87887489]
[1752191285881,0.25425401,684.43,683.93,1.87887489]
[1752191286081,0.25425401,684.43,683.94,1.87843875]
[1752191286278,0.25425401,684.43,683.95,1.87843875]
[1752191286482,0.25425401,684.43,683.96,1.87843875]
[1752191286678,0.25425401,684.43,683.77,1.441]
[1752191286679,0.25425401,684.43,683.97,1.87843875]
[1752191286883,0.25425401,684.43,683.98,1.87843875]
[1752191287080,0.25425401,684.43,683.99,1.87843875]
[1752191287379,0.25425401,684.43,684.0,1.87843875]
[1752191287580,0.25425401,684.43,684.01,1.87843875]
[1752191287779,0.25425401,684.43,684.02,1.87843875]
[1752191287978,0.25425401,684.43,684.03,1.87843875]
[1752191288183,0.25425401,684.43,684.04,1.87843875]
[1752191288383,0.25425401,684.43,684.05,1.87843875]
[1752191288681,0.25425401,684.43,684.06,1.87843875]
[1752191288983,0.25425401,684.43,684.07,1.87843875]
[1752191289183,0.25425401,684.43,684.08,1.87843875]
[1752191289480,0.25425401,684.43,684.09,0.97934356]
[1752191289680,0.25425401,684.43,684.1,0.97934356]
[1752191289884,0.25425401,684.43,683.78,0.9859275]
[1752191290078,0.25425401,684.43,683.79,1.87719277]
[1752191290285,0.25425401,684.43,683.8,1.87719277]
[1752191290582,0.25425401,684.43,683.81,1.87719277]
[1752191290783,0.25425401,684.43,683.82,1.87719277]
[1752191290991,0.25425401,684.43,683.83,1.87719277]
[1752191291185,0.25425401,684.43,683.84,1.87719277]
[1752191291384,0.25425401,684.43,683.85,1.87719277]
[1752191291579,0.25425401,684.43,683.77,1.441]
[1752191291580,0.25425401,684.43,683.86,1.87719277]
[1752191291785,0.25425401,684.43,683.87,1.87719277]
[1752191292085,0.25425401,684.43,683.88,1.87719277]
[1752191292286,0.25425401,684.43,683.89,1.87719277]
[1752191292481,0.25425401,684.43,683.9,1.87719277]
[1752191292685,0.25425401,684.43,683.91,0.89785011]
[1752191292883,0.25425401,684.43,683.92,0.89785011]
[1752191293084,0.25425401,684.43,683.93,0.89785011]
[1752191293285,0.25425401,684.43,683.94,0.89785011]
[1752191293485,0.25425401,684.43,683.95,0.89785011]
[1752191293684,0.25425401,684.43,683.96,0.89785011]
[1752191293882,0.25425401,684.43,683.97,0.89785011]
[1752191294095,0.25425401,684.43,683.98,0.89785011]
[1752191294282,0.25425401,684.43,683.99,0.89785011]
[1752191294485,0.25425401,684.43,684.0,0.89785011]
[1752191294785,0.25425401,684.43,684.01,0.89785011]
[1752191294985,0.25425401,684.43,684.02,0.89785011]
[1752191295188,0.25425401,684.43,684.03,0.89785011]